fUSD/lending_fUSD_20241011
["ID","MTS","AMOUNT","RATE_DAILY","PERIOD"]
[340128025,1728655847662,-1244.4732892,0.0001448,2]
[340128026,1728655847672,-151.0,0.0001449,2]
[340128027,1728655847682,-151.0,0.0001449,2]
[340128028,1728655847692,-151.0,0.0001449,2]
[340128029,1728655847702,-151.0,0.0001449,2]
[340128030,1728655847712,-155.886048,0.0001449,2]
[340128031,1728655847721,-151.0,0.0001449,2]
[340128032,1728655847731,-151.0,0.0001449,2]
[340128033,1728655847741,-439.048435,0.0001449,2]
[340128034,1728655847751,-439.048435,0.0001449,2]
[340128035,1728655847760,-248.496905,0.0001449,2]
[340128036,1728655847769,-248.496905,0.0001449,2]
[340128037,1728655847779,-151.0,0.0001449,2]
[340128038,1728655847788,-151.0,0.0001449,2]
[340128039,1728655847798,-151.0,0.0001449,2]
[340128040,1728655847807,-230.315982,0.0001449,2]
[340128041,1728655847817,-1469.107476,0.0001449,2]
[340128042,1728655847827,-1080.689857,0.0001449,2]
[340128043,1728655847839,-151.0,0.0001449,2]
[340128044,1728655847849,-451.898588,0.0001449,2]
[340128045,1728655847858,-223.428765,0.0001449,2]
[340128046,1728655847867,-451.898588,0.0001449,2]
[340128047,1728655847878,-223.428765,0.0001449,2]
[340128048,1728655847891,-269.984304,0.0001449,2]
[340128049,1728655847900,-269.984304,0.0001449,2]
[340128050,1728655847909,-151.0,0.0001449,2]
[340128051,1728655847918,-4084.3128621,0.0001449,2]
[340128052,1728655847928,-3009.0655506,0.0001449,2]
[340128053,1728655847938,-151.0,0.0001449,2]
[340128054,1728655847947,-151.0,0.0001449,2]
[340128055,1728655847958,-151.0,0.0001449,2]
[340128056,1728655847967,-177.337121,0.0001449,2]
[340128057,1728655847977,-439.965846,0.0001449,2]
[340128058,1728655847986,-177.337121,0.0001449,2]
[340128059,1728655847996,-151.0,0.0001449,2]
[340128060,1728655848006,-3732.2862967,0.0001449,2]
[340128061,1728655848015,-2749.7144561,0.0001449,2]
[340128062,1728655848024,-439.965846,0.0001449,2]
[340128063,1728655848034,-151.0,0.0001449,2]
[340128064,1728655848044,-151.0,0.0001449,2]
[340128065,1728655848054,-3084.111257,0.0001449,2]
[340128066,1728655848063,-3084.111257,0.0001449,2]
[340128067,1728655848073,-151.0,0.0001449,2]
[340128068,1728655848083,-15056.8902344,0.0001449,2]
[340128069,1728655848093,-11092.9723635,0.0001449,2]
[340128070,1728655848102,-151.0,0.0001449,2]
[340128071,1728655848112,-985.1262686,0.0001449,2]
[340128072,1728655848121,-725.779248,0.0001449,2]
[340128073,1728655848132,-7811.17461725,0.000145,2]
[340128074,1728655848141,-16044.19180909,0.000145,2]
[340128075,1728655848150,-2430.0,0.000145,2]
[340128076,1728655848160,-140972.18408202,0.000145,3]
[340128077,1728655848169,-205894.799253,0.000145,3]
[340128078,1728655848179,-151.0,0.000145,2]
[340128079,1728655848188,-153.993974,0.000145,2]
[340128080,1728655848198,-151.0,0.000145,2]
[340128081,1728655848208,-151.0,0.000145,2]
[340128082,1728655848218,-165.363096,0.000145,2]
[340128083,1728655848228,-151.0,0.000145,2]
[340128084,1728655848237,-151.0,0.000145,2]
[340128085,1728655848247,-151.0,0.000145,2]
[340128086,1728655848256,-151.0,0.000145,2]
[340128087,1728655848266,-205.625776,0.000145,2]
[340128088,1728655848275,-205.625776,0.000145,2]
[340128089,1728655848285,-205.625776,0.000145,2]
[340128090,1728655848295,-205.625776,0.000145,2]
[340128091,1728655848304,-205.625776,0.000145,2]
[340128092,1728655848313,-205.625776,0.000145,2]
[340128093,1728655848323,-151.0,0.000145,2]
[340128094,1728655848332,-205.749334,0.000145,2]
[340128095,1728655848342,-151.0,0.000145,2]
[340128096,1728655848352,-151.0,0.000145,2]
[340128097,1728655848362,-151.0,0.000145,2]
[340128098,1728655848371,-151.0,0.000145,2]
[340128099,1728655848382,-151.0,0.000145,2]
[340128100,1728655848392,-151.0,0.000145,2]
[340128101,1728655848401,-151.0,0.000145,2]
[340128102,1728655848411,-1127.513504,0.000145,2]
[340128103,1728655848420,-1127.513504,0.000145,2]
[340128104,1728655848429,-1127.513504,0.000145,2]
[340128105,1728655848439,-1127.513504,0.000145,2]
[340128106,1728655848449,-1127.513504,0.000145,2]
[340128107,1728655848459,-1127.513504,0.000145,2]
[340128108,1728655848469,-260.479444,0.000145,2]
[340128109,1728655848478,-260.479444,0.000145,2]
[340128110,1728655848487,-260.479444,0.000145,2]
[340128111,1728655848496,-260.479444,0.000145,2]
[340128112,1728655848505,-260.479444,0.000145,2]
[340128113,1728655848515,-260.479444,0.000145,2]
[340128114,1728655848525,-198.680268,0.000145,2]
[340128115,1728655848535,-198.680268,0.000145,2]
[340128116,1728655848544,-198.680268,0.000145,2]
[340128117,1728655848554,-198.680268,0.000145,2]
[340128118,1728655848563,-198.680268,0.000145,2]
[340128119,1728655848573,-198.680268,0.000145,2]
[340128120,1728655848582,-255.711878,0.000145,2]
[340128121,1728655848592,-189.057167,0.000145,2]
[340128122,1728655848601,-151.0,0.000145,2]
[340128123,1728655848610,-151.0,0.000145,2]
[340128124,1728655848620,-151.0,0.000145,2]
[340128125,1728655848631,-151.0,0.000145,2]
[340128126,1728655848640,-151.0,0.000145,2]
[340128127,1728655848650,-151.0,0.000145,2]
[340128128,1728655848660,-151.0,0.000145,2]
[340128129,1728655848670,-151.0,0.000145,2]
[340128130,1728655848680,-151.0,0.000145,2]
[340128131,1728655848690,-151.0,0.000145,2]
[340128132,1728655848699,-151.0,0.000145,2]
[340128133,1728655848709,-439.048435,0.000145,2]
[340128134,1728655848718,-439.048435,0.000145,2]
[340128135,1728655848728,-439.048435,0.000145,2]
[340128136,1728655848738,-439.048435,0.000145,2]
[340128137,1728655848748,-248.496905,0.000145,2]
[340128138,1728655848758,-248.496905,0.000145,2]
[340128139,1728655848767,-248.496905,0.000145,2]
[340128140,1728655848777,-248.496905,0.000145,2]
[340128141,1728655848787,-151.0,0.000145,2]
[340128142,1728655848796,-151.0,0.000145,2]
[340128143,1728655848806,-151.0,0.000145,2]
[340128144,1728655848816,-151.0,0.000145,2]
[340128145,1728655848825,-151.0,0.000145,2]
[340128146,1728655848835,-151.0,0.000145,2]
[340128147,1728655848844,-156.288852,0.000145,2]
[340128148,1728655848855,-451.898588,0.000145,2]
[340128149,1728655848865,-451.898588,0.000145,2]
[340128150,1728655848874,-451.898588,0.000145,2]
[340128151,1728655848886,-223.428765,0.000145,2]
[340128152,1728655848897,-451.898588,0.000145,2]
[340128153,1728655848906,-223.428765,0.000145,2]
[340128154,1728655848916,-223.428765,0.000145,2]
[340128155,1728655848926,-223.428765,0.000145,2]
[340128156,1728655848936,-247.220335,0.000145,2]
[340128157,1728655848946,-151.0,0.000145,2]
[340128158,1728655848956,-151.0,0.000145,2]
[340128159,1728655848966,-151.0,0.000145,2]
[340128160,1728655848976,-159.94314,0.000145,2]
[340128161,1728655848986,-159.94314,0.000145,2]
[340128162,1728655848995,-159.94314,0.000145,2]
[340128163,1728655849005,-159.94314,0.000145,2]
[340128164,1728655849015,-159.94314,0.000145,2]
[340128165,1728655849025,-159.94314,0.000145,2]
[340128166,1728655849034,-269.984304,0.000145,2]
[340128167,1728655849043,-269.984304,0.000145,2]
[340128168,1728655849053,-269.984304,0.000145,2]
[340128169,1728655849064,-269.984304,0.000145,2]
[340128170,1728655849073,-151.0,0.000145,2]
[340128171,1728655849083,-151.0,0.000145,2]
[340128172,1728655849092,-151.0,0.000145,2]
[340128173,1728655849102,-151.0,0.000145,2]
[340128174,1728655849111,-151.0,0.000145,2]
[340128175,1728655849120,-151.0,0.000145,2]
[340128176,1728655849131,-177.337121,0.000145,2]
[340128177,1728655849140,-177.337121,0.000145,2]
[340128178,1728655849150,-439.965846,0.000145,2]
[340128179,1728655849160,-177.337121,0.000145,2]
[340128180,1728655849169,-439.965846,0.000145,2]
[340128181,1728655849179,-177.337121,0.000145,2]
[340128182,1728655849189,-151.0,0.000145,2]
[340128183,1728655849198,-151.0,0.000145,2]
[340128184,1728655849207,-439.965846,0.000145,2]
[340128185,1728655849217,-439.965846,0.000145,2]
[340128186,1728655849226,-151.0,0.000145,2]
[340128187,1728655849236,-172.253897,0.000145,2]
[340128188,1728655849246,-151.0,0.000145,2]
[340128189,1728655849255,-213.655473,0.000145,2]
[340128190,1728655849265,-3084.111257,0.000145,2]
[340128191,1728655849274,-3084.111257,0.000145,2]
[340128192,1728655849283,-3084.111257,0.000145,2]
[340128193,1728655849293,-3084.111257,0.000145,2]
[340128194,1728655849302,-151.0,0.000145,2]
[340128195,1728655849311,-151.0,0.000145,2]
[340128196,1728655849321,-151.0,0.000145,2]
[340128197,1728655849330,-293.206488,0.000145,2]
[340128198,1728655849340,-151.0,0.00014528,2]
[340128199,1728655849350,-800.0,0.00014606,2]
[340128200,1728655849359,-167.0,0.00014773,2]
[340128201,1728655849369,-637.60803969,0.000149,2]
[340128202,1728655849378,-300.0,0.00014944,2]
[340128203,1728655849388,-151.22,0.00014944,2]
[340128204,1728655849398,-150.0,0.00014944,2]
[340128205,1728655849407,-350.92,0.00014944,2]
[340128206,1728655849417,-150.0,0.00014944,2]
[340128207,1728655849427,-201.9633965,0.00014973,2]
[340128208,1728655849437,-26695.01357032,0.0001499,2]
[340128209,1728655849447,-692.272238,0.0001499,2]
[340128210,1728655849456,-1933.818239,0.0001499,2]
[340128211,1728655849466,-1767.1426156,0.0001499,2]
[340128212,1728655849475,-7129.0544926,0.0001499,2]
[340128213,1728655849485,-466.4322275,0.0001499,2]
[340128214,1728655849494,-1938.06151901,0.00015,2]
[340128215,1728655849505,-200.97607992,0.00015,2]
[340128216,1728655849514,-5389.0,0.00015,2]
[340128217,1728655849524,-493.91739645,0.00015,2]
[340128218,1728655849534,-500.0,0.00015,2]
[340128219,1728655849544,-112386.1396978,0.00015,2]
[340128220,1728655849565,-3023.05980396,0.00015,2]
[340128221,1728655849585,-173.129284,0.000141,2]
[340128222,1728655849596,-177199.79258438,0.00015,2]
[340128223,1728655849606,-416.0,0.00015,2]
[340128224,1728655849616,-416.0,0.00015,2]
[340128225,1728655849625,-10590.0,0.00015,2]
[340128226,1728655849642,-205.625776,0.00015,2]
[340128227,1728655849652,-205.625776,0.00015,2]
[340128228,1728655849662,-251.428238,0.00015,2]
[340128229,1728655849671,-151.0,0.00015,2]
[340128230,1728655849681,-1127.513504,0.00015,2]
[340128231,1728655849691,-1127.513504,0.00015,2]
[340128232,1728655849701,-260.479444,0.00015,2]
[340128233,1728655849711,-260.479444,0.00015,2]
[340128234,1728655849720,-198.680268,0.00015,2]
[340128235,1728655849729,-198.680268,0.00015,2]
[340128236,1728655849739,-151.0,0.00015,2]
[340128237,1728655849748,-151.0,0.00015,2]
[340128238,1728655849758,-214.312942,0.00015,2]
[340128239,1728655849767,-151.0,0.00015,2]
[340128240,1728655849777,-439.048435,0.00015,2]
[340128241,1728655849786,-439.048435,0.00015,2]
[340128242,1728655849796,-248.496905,0.00015,2]
[340128243,1728655849805,-248.496905,0.00015,2]
[340128244,1728655849815,-151.0,0.00015,2]
[340128245,1728655849824,-1582.0,0.00015,2]
[340128246,1728655849835,-151.0,0.00015,2]
[340128247,1728655849844,-151.0,0.00015,2]
[340128248,1728655849853,-150.0,0.00015,2]
[340128249,1728655849862,-150.49600462,0.00015,2]
[340128250,1728655849872,-150.0,0.00015,2]
[340128251,1728655849882,-150.78556663,0.00015,2]
[340128252,1728655849895,-150.0,0.00015,2]
[340128253,1728655849904,-150.0,0.00015,2]
[340128254,1728655849913,-150.0,0.00015,2]
[340128255,1728655849922,-150.0,0.00015,2]
[340128256,1728655849933,-151.35549024,0.00015,2]
[340128257,1728655849943,-150.0,0.00015,2]
[340128258,1728655849951,-164.18176555,0.00015,2]
[340128259,1728655849961,-150.49443801,0.00015,2]
[340128260,1728655849970,-451.898588,0.00015,2]
[340128261,1728655849980,-150.0,0.00015,2]
[340128262,1728655849989,-451.898588,0.00015,2]
[340128263,1728655849999,-223.428765,0.00015,2]
[340128264,1728655850008,-223.428765,0.00015,2]
[340128265,1728655850017,-159.94314,0.00015,2]
[340128266,1728655850027,-159.94314,0.00015,2]
[340128267,1728655850036,-269.984304,0.00015,2]
[340128268,1728655850045,-269.984304,0.00015,2]
[340128269,1728655850055,-151.0,0.00015,2]
[340128270,1728655850064,-151.0,0.00015,2]
[340128271,1728655850073,-298.232782,0.00015,2]
[340128272,1728655850082,-177.337121,0.00015,2]
[340128273,1728655850091,-439.965846,0.00015,2]
[340128274,1728655850100,-177.337121,0.00015,2]
[340128275,1728655850109,-151.0,0.00015,2]
[340128276,1728655850119,-439.965846,0.00015,2]
[340128277,1728655850128,-1368.154,0.00015,2]
[340128278,1728655850137,-3084.111257,0.00015,2]
[340128279,1728655850146,-3084.111257,0.00015,2]
[340128280,1728655850156,-151.0,0.00015,2]
[340128281,1728655850166,-300.0,0.00015068,2]
[340128282,1728655850175,-169.79,0.00015092,2]
[340128283,1728655850184,-10010.31603017,0.0001513,2]
[340128284,1728655850194,-167.0,0.00015203,2]
[340128285,1728655850204,-1214.21086402,0.00015235,2]
[340128286,1728655850214,-1517.64,0.000153,2]
[340128287,1728655850223,-800.0,0.00015337,2]
[340128288,1728655850232,-150.0,0.00015391,2]
[340128289,1728655850241,-15802.2777512,0.000154,2]
[340128290,1728655850251,-480.46367368,0.000154,2]
[340128291,1728655850262,-504.77801501,0.00015442,2]
[340128292,1728655850272,-150.0,0.0001547,2]
[340128293,1728655850282,-500.0,0.0001547,2]
[340128294,1728655850292,-812.40111643,0.000155,2]
[340128295,1728655850302,-1000.0,0.00015558,2]
[340128296,1728655850312,-150.0,0.00015581,2]
[340128297,1728655850322,-470.17,0.00015587,2]
[340128298,1728655850331,-378.63553364,0.000156,2]
[340128299,1728655850341,-155.8,0.000156,2]
[340128300,1728655850352,-167.32,0.00015633,2]
[340128301,1728655850362,-152.0,0.0001566,5]
[340128302,1728655850371,-668.87,0.00015682,2]
[340128303,1728655850381,-2864.44525726,0.0001575,2]
[340128304,1728655850390,-428.15,0.00015766,2]
[340128305,1728655850399,-533.11,0.00015766,2]
[340128306,1728655850408,-858.51,0.00015766,2]
[340128307,1728655850417,-359.09,0.00015766,2]
[340128308,1728655850428,-359.09,0.00015766,2]
[340128309,1728655850437,-303.76,0.00015766,2]
[340128310,1728655850446,-358.56,0.00015766,2]
[340128311,1728655850455,-150.0,0.00015781,2]
[340128312,1728655850464,-3844.2,0.00015896,2]
[340128313,1728655850473,-700.0,0.00016,2]
[340128314,1728655850482,-2000.0,0.00016,2]
[340128315,1728655850491,-2000.0,0.0001601,2]
[340128316,1728655850501,-3525.087081,0.0001602,2]
[340128317,1728655850510,-800.0,0.00016103,2]
[340128318,1728655850521,-9999.99,0.00016116,2]
[340128319,1728655850530,-7225.00740732,0.00016129,2]
[340128320,1728655850539,-150.0,0.00016163,2]
[340128321,1728655850548,-150.0,0.00016172,2]
[340128322,1728655850557,-617.81,0.00016189,2]
[340128323,1728655850567,-200.0,0.0001634,2]
[340128324,1728655850576,-5648.09,0.00016438,2]
[340128325,1728655850586,-252.45,0.00016438,2]
[340128326,1728655850595,-150.0,0.00016438,2]
[340128327,1728655850605,-156.360367,0.00016438,2]
[340128328,1728655850614,-156.360367,0.00016438,2]
[340128329,1728655850754,-156.360367,0.00016438,2]
[340128330,1728655850765,-156.360367,0.00016438,2]
[340128331,1728655850774,-156.360367,0.00016438,2]
[340128332,1728655850784,-156.360367,0.00016438,2]
[340128333,1728655850793,-156.360367,0.00016438,2]
[340128334,1728655850802,-156.360367,0.00016438,2]
[340128335,1728655850812,-156.360367,0.00016438,2]
[340128336,1728655850821,-156.360367,0.00016438,2]
[340128337,1728655850831,-156.360367,0.00016438,2]
[340128338,1728655850840,-156.360367,0.00016438,2]
[340128339,1728655850849,-156.360367,0.00016438,2]
[340128340,1728655850859,-156.360367,0.00016438,2]
[340128341,1728655850869,-300.0,0.00016438,2]
[340128342,1728655850879,-2000.0,0.00016438,2]
[340128343,1728655850892,-2000.0,0.00016438,2]
[340128344,1728655850902,-7450.0,0.00016463,7]
[340128345,1728655850913,-260.479444,0.00016463,2]
[340128346,1728655850923,-260.479444,0.00016463,2]
[340128347,1728655850934,-198.680268,0.00016463,2]
[340128348,1728655850943,-198.680268,0.00016463,2]
[340128349,1728655850952,-151.0,0.00016463,2]
[340128350,1728655850962,-151.0,0.00016463,2]
[340128351,1728655850974,-151.0,0.00016463,2]
[340128352,1728655850984,-439.048435,0.00016463,2]
[340128353,1728655850994,-439.048435,0.00016463,2]
[340128354,1728655851004,-248.496905,0.00016463,2]
[340128355,1728655851013,-248.496905,0.00016463,2]
[340128356,1728655851022,-151.0,0.00016463,2]
[340128357,1728655851032,-159.444108,0.00016463,2]
[340128358,1728655851043,-451.898588,0.00016463,2]
[340128359,1728655851053,-451.898588,0.00016463,2]
[340128360,1728655851062,-223.428765,0.00016463,2]
[340128361,1728655851072,-223.428765,0.00016463,2]
[340128362,1728655851081,-159.94314,0.00016463,2]
[340128363,1728655851093,-159.94314,0.00016463,2]
[340128364,1728655851103,-269.984304,0.00016463,2]
[340128365,1728655851112,-269.984304,0.00016463,2]
[340128366,1728655851121,-151.0,0.00016463,2]
[340128367,1728655851131,-288.35868,0.00016463,2]
[340128368,1728655851141,-177.337121,0.00016463,2]
[340128369,1728655851151,-156.360367,0.00016463,2]
[340128370,1728655851160,-439.965846,0.00016463,2]
[340128371,1728655851169,-177.337121,0.00016463,2]
[340128372,1728655851179,-151.0,0.00016463,2]
[340128373,1728655851188,-156.360367,0.00016463,2]
[340128374,1728655851197,-439.965846,0.00016463,2]
[340128375,1728655851206,-3084.111257,0.00016463,2]
[340128376,1728655851215,-3084.111257,0.00016463,2]
[340128377,1728655851225,-151.0,0.00016463,2]
[340128378,1728655851234,-205.625776,0.00016494,2]
[340128379,1728655851243,-205.625776,0.00016494,2]
[340128380,1728655851252,-151.0,0.00016494,2]
[340128381,1728655851261,-1127.513504,0.00016494,2]
[340128382,1728655851270,-1127.513504,0.00016494,2]
[340128383,1728655851279,-150.0,0.00016563,2]
[340128384,1728655851288,-534.7,0.00016608,2]
[340128385,1728655851297,-1068.96,0.00016608,2]
[340128386,1728655851306,-500.0,0.00016644,2]
[340128387,1728655851315,-752.33,0.00016735,2]
[340128388,1728655851324,-1525.13,0.00016735,2]
[340128389,1728655851333,-423.99,0.00016735,2]
[340128390,1728655851342,-423.99,0.00016735,2]
[340128391,1728655851351,-423.99,0.00016735,2]
[340128392,1728655851360,-150.0,0.00016744,2]
[340128393,1728655851369,-150.0,0.0001684,2]
[340128394,1728655851378,-500.0,0.0001684,2]
[340128395,1728655851389,-150.0,0.00016871,2]
[340128396,1728655851399,-26042.38,0.00016922,2]
[340128397,1728655851409,-150.0,0.00016953,2]
[340128398,1728655851419,-1000.0,0.00016972,2]
[340128399,1728655851429,-500.0,0.00017,2]
[340128400,1728655851440,-470.17,0.00017004,2]
[340128401,1728655851450,-167.32,0.00017055,2]
[340128402,1728655851460,-668.87,0.00017107,2]
[340128403,1728655851471,-150.0,0.00017304,2]
[340128404,1728655851481,-150.0,0.00017326,2]
[340128405,1728655851491,-150.0,0.00017344,2]
[340128406,1728655851501,-883.22,0.00017437,2]
[340128407,1728655851511,-534.59,0.00017452,2]
[340128408,1728655851520,-181.63,0.00017612,2]
[340128409,1728655851530,-155.8,0.000177,2]
[340128410,1728655851539,-150.0,0.00017734,2]
[340128411,1728655851549,-150.0,0.00017736,2]
[340128412,1728655851558,-150.0,0.00017778,2]
[340128413,1728655851568,-1599.16,0.000178,7]
[340128414,1728655851578,-500.0,0.00017862,30]
[340128415,1728655851587,-500.0,0.00017862,30]
[340128416,1728655851597,-500.0,0.00017862,30]
[340128417,1728655851609,-500.0,0.00017862,30]
[340128418,1728655851619,-500.0,0.00017862,30]
[340128419,1728655851628,-500.0,0.00017862,30]
[340128420,1728655851641,-500.0,0.00017862,30]
[340128421,1728655851650,-500.0,0.00017862,30]
[340128422,1728655851660,-500.0,0.00017862,30]
[340128423,1728655851670,-513.2696706,0.00017862,30]
[340128424,1728655851679,-150.0,0.00017907,2]
[340128425,1728655851688,-20075.76460253,0.00018,2]
[340128426,1728655851697,-1123.5690445,0.00018,2]
[340128427,1728655851707,-5574.82205328,0.00018,2]
[340128428,1728655851717,-1022.79356061,0.00018,2]
[340128429,1728655851726,-750.0,0.00018,2]
[340128430,1728655851736,-869.44,0.00018,2]
[340128431,1728655851745,-869.44,0.00018,2]
[340128432,1728655851755,-869.44,0.00018,2]
[340128433,1728655851764,-869.44,0.00018,2]
[340128434,1728655851774,-869.44,0.00018,2]
[340128435,1728655851783,-869.44,0.00018,2]
[340128436,1728655851792,-869.44,0.00018,2]
[340128437,1728655851802,-869.44,0.00018,2]
[340128438,1728655851811,-869.44,0.00018,2]
[340128439,1728655851821,-869.44,0.00018,2]
[340128440,1728655851830,-869.44,0.00018,2]
[340128441,1728655851840,-869.44,0.00018,2]
[340128442,1728655851849,-869.44,0.00018,2]
[340128443,1728655851858,-869.44,0.00018,2]
[340128444,1728655851870,-869.44,0.00018,2]
[340128445,1728655851880,-869.44,0.00018,2]
[340128446,1728655851892,-869.44,0.00018,2]
[340128447,1728655851902,-869.44,0.00018,2]
[340128448,1728655851911,-869.44,0.00018,2]
[340128449,1728655851920,-869.44,0.00018,2]
[340128450,1728655851930,-500.0,0.00018,2]
[340128451,1728655851940,-1680.57962129,0.000181,2]
[340128452,1728655851950,-150.0,0.00018125,2]
[340128453,1728655851959,-151.0,0.0001816,2]
[340128454,1728655851969,-150.0,0.00018169,2]
[340128455,1728655851978,-150.0,0.0001821,2]
[340128456,1728655851988,-747.88800821,0.0001821,2]
[340128457,1728655851997,-205.625776,0.00018356,2]
[340128458,1728655852007,-205.625776,0.00018356,2]
[340128459,1728655852018,-151.0,0.00018356,2]
[340128460,1728655852027,-1127.513504,0.00018356,2]
[340128461,1728655852036,-1127.513504,0.00018356,2]
[340128462,1728655852045,-260.479444,0.00018356,2]
[340128463,1728655852055,-260.479444,0.00018356,2]
[340128464,1728655852064,-198.680268,0.00018356,2]
[340128465,1728655852074,-198.680268,0.00018356,2]
[340128466,1728655852085,-151.0,0.00018356,2]
[340128467,1728655852095,-151.0,0.00018356,2]
[340128468,1728655852104,-151.0,0.00018356,2]
[340128469,1728655852114,-439.048435,0.00018356,2]
[340128470,1728655852123,-439.048435,0.00018356,2]
[340128471,1728655852133,-248.496905,0.00018356,2]
[340128472,1728655852142,-248.496905,0.00018356,2]
[340128473,1728655852151,-151.0,0.00018356,2]
[340128474,1728655852160,-451.898588,0.00018356,2]
[340128475,1728655852170,-451.898588,0.00018356,2]
[340128476,1728655852180,-223.428765,0.00018356,2]
[340128477,1728655852189,-223.428765,0.00018356,2]
[340128478,1728655852200,-159.94314,0.00018356,2]
[340128479,1728655852209,-159.94314,0.00018356,2]
[340128480,1728655852218,-269.984304,0.00018356,2]
[340128481,1728655852227,-269.984304,0.00018356,2]
[340128482,1728655852237,-151.0,0.00018356,2]
[340128483,1728655852247,-177.337121,0.00018356,2]
[340128484,1728655852257,-156.360367,0.00018356,2]
[340128485,1728655852267,-439.965846,0.00018356,2]
[340128486,1728655852278,-177.337121,0.00018356,2]
[340128487,1728655852290,-151.0,0.00018356,2]
[340128488,1728655852302,-156.360367,0.00018356,2]
[340128489,1728655852312,-439.965846,0.00018356,2]
[340128490,1728655852321,-3084.111257,0.00018356,2]
[340128491,1728655852330,-3084.111263,0.00018356,2]
[340128492,1728655852341,-174.203666,0.00018356,2]
[340128493,1728655852352,-80804.7,0.00018356,2]
[340128494,1728655852362,-617.81,0.00018453,2]
[340128495,1728655852372,-150.0,0.00018488,2]
[340128496,1728655852383,-150.0,0.00018516,2]
[340128497,1728655852393,-150.0,0.00018601,2]
[340128498,1728655852403,-500.0,0.00018836,2]
[340128499,1728655852413,-150.0,0.00018906,2]
[340128500,1728655852422,-500.0,0.00019,2]
[340128501,1728655852433,-150.0,0.00019034,2]
[340128502,1728655852444,-150.0,0.0001907,2]
[340128503,1728655852455,-1909.38309934,0.00019178,2]
[340128504,1728655852464,-200.0,0.00019178,2]
[340128505,1728655852473,-200.0,0.00019178,2]
[340128506,1728655852482,-193.0,0.00019178,2]
[340128507,1728655852491,-150.0,0.00019297,2]
[340128508,1728655852500,-151.25,0.00019361,2]
[340128509,1728655852508,-538.32,0.00019385,2]
[340128510,1728655852517,-150.0,0.00019466,2]
[340128511,1728655852527,-150.0,0.00019579,2]
[340128512,1728655852536,-1069.29,0.00019585,2]
[340128513,1728655852547,-155.8,0.000196,2]
[340128514,1728655852555,-150.0,0.00019651,2]
[340128515,1728655852565,-150.0,0.00019688,2]
[340128516,1728655852574,-307.48,0.00019862,2]
[340128517,1728655852584,-150.0,0.00019899,2]
[340128518,1728655852594,-295.07822076,0.0002,2]
[340128519,1728655852604,-3790.54491435,0.0002,2]
[340128520,1728655852613,-6653.0,0.0002,2]
[340128521,1728655852622,-3950.0,0.0002,2]
[340128522,1728655852631,-22520.66819562,0.0002,2]
[340128523,1728655853000,-690.600222,0.00011422,2]
[340128524,1728655853013,-3165.32762847,0.00011422,2]